[Event "*** Titled Tuesday Blitz"]
[Site "Chess.com"]
[Date "2021.04.06"]
[Round "6"]
[White "Ladislav1969"]
[Black "vrekhson"]
[Result "0-1"]
[WhiteElo "2337"]
[BlackElo "2221"]
[TimeControl "180+1"]
[EndTime "11:08:24 PDT"]
[Termination "vrekhson won on time"]

1. e4 {[%clk 0:03:00.9]} 1... e5 {[%clk 0:02:59.8]} 2. Bc4 {[%clk 0:03:00.4]}
2... Nc6 {[%clk 0:02:59.6]} 3. d3 {[%clk 0:03:00.9]} 3... Bc5 {[%clk 0:02:58.9]}
4. Nf3 {[%clk 0:03:01]} 4... Nf6 {[%clk 0:02:57.9]} 5. c3 {[%clk 0:03:01.4]}
5... d6 {[%clk 0:02:57.2]} 6. O-O {[%clk 0:03:01]} 6... a6 {[%clk 0:02:57.5]} 7.
Nbd2 {[%clk 0:03:01]} 7... h6 {[%clk 0:02:54.8]} 8. a4 {[%clk 0:03:00.6]} 8...
O-O {[%clk 0:02:51.4]} 9. Re1 {[%clk 0:03:00.6]} 9... Be6 {[%clk 0:02:50.8]} 10.
Bb3 {[%clk 0:02:53.9]} 10... Qd7 {[%clk 0:02:33.6]} 11. Bc2 {[%clk 0:02:51.3]}
11... b5 {[%clk 0:02:32.6]} 12. Nb3 {[%clk 0:02:41.4]} 12... Bb6 {[%clk
0:02:32.2]} 13. axb5 {[%clk 0:02:33.1]} 13... axb5 {[%clk 0:02:33.1]} 14. Rxa8
{[%clk 0:02:32.2]} 14... Rxa8 {[%clk 0:02:34]} 15. d4 {[%clk 0:02:31.5]} 15...
exd4 {[%clk 0:02:19]} 16. Nbxd4 {[%clk 0:02:27.4]} 16... Nxd4 {[%clk 0:02:08]}
17. cxd4 {[%clk 0:02:26.9]} 17... Bg4 {[%clk 0:02:06.6]} 18. Be3 {[%clk
0:02:26.4]} 18... Ba5 {[%clk 0:01:59.8]} 19. Rf1 {[%clk 0:02:17.5]} 19... Qe6
{[%clk 0:01:54.2]} 20. h3 {[%clk 0:02:15.9]} 20... Bh5 {[%clk 0:01:49.9]} 21.
Qd3 {[%clk 0:02:05.3]} 21... Bxf3 {[%clk 0:01:40.1]} 22. gxf3 {[%clk 0:02:05.2]}
22... Qxh3 {[%clk 0:01:32.2]} 23. e5 {[%clk 0:01:59.9]} 23... Ne8 {[%clk
0:01:14.5]} 24. exd6 {[%clk 0:01:28.8]} 24... cxd6 {[%clk 0:01:01.6]} 25. Qh7+
{[%clk 0:01:20.6]} 25... Kf8 {[%clk 0:01:01.6]} 26. Qe4 {[%clk 0:01:12.3]} 26...
Ra7 {[%clk 0:00:50.5]} 27. Ra1 {[%clk 0:00:56.5]} 27... Re7 {[%clk 0:00:50]} 28.
Qh7 {[%clk 0:00:56.4]} 28... Rxe3 {[%clk 0:00:31.1]} 29. fxe3 {[%clk 0:00:10.1]}
29... Qxf3 {[%clk 0:00:27.8]} 30. Qe4 {[%clk 0:00:06.9]} 30... Qg3+ {[%clk
0:00:24.8]} 31. Kf1 {[%clk 0:00:07.4]} 31... Bd8 {[%clk 0:00:15.6]} 32. Ra8
{[%clk 0:00:04.1]} 32... Qh3+ {[%clk 0:00:13.8]} 33. Qg2 {[%clk 0:00:03.2]}
33... Qxe3 {[%clk 0:00:09.2]} 34. Rxd8 {[%clk 0:00:02.7]} 34... Qc1+ {[%clk
0:00:09.4]} 35. Kf2 {[%clk 0:00:02.2]} 35... Qxc2+ {[%clk 0:00:09.8]} 36. Kg1
{[%clk 0:00:02.3]} 36... Qb1+ {[%clk 0:00:09.4]} 37. Kh2 {[%clk 0:00:02.1]}
37... Qf5 {[%clk 0:00:09]} 38. Qe2 {[%clk 0:00:01.1]} 38... Qf4+ {[%clk
0:00:08.2]} 0-1

[Event "*** Titled Tuesday Blitz"]
[Site "Chess.com"]
[Date "2021.04.06"]
[Round "6"]
[White "Smile2005"]
[Black "GM_LOADING"]
[Result "0-1"]
[WhiteElo "2377"]
[BlackElo "2540"]
[TimeControl "180+1"]
[EndTime "11:08:25 PDT"]
[Termination "GM_LOADING won by checkmate"]

1. Nf3 {[%clk 0:02:59.6]} 1... Nf6 {[%clk 0:02:59.5]} 2. g3 {[%clk 0:03:00.5]}
2... d5 {[%clk 0:02:59.4]} 3. Bg2 {[%clk 0:03:01.4]} 3... c6 {[%clk 0:03:00.1]}
4. O-O {[%clk 0:03:02.3]} 4... Bg4 {[%clk 0:03:00.8]} 5. d3 {[%clk 0:03:03.2]}
5... Nbd7 {[%clk 0:03:01.4]} 6. Nbd2 {[%clk 0:03:03.3]} 6... e5 {[%clk
0:03:01.4]} 7. e4 {[%clk 0:03:03.8]} 7... dxe4 {[%clk 0:02:58.1]} 8. Nxe4 {[%clk
0:03:04]} 8... Nxe4 {[%clk 0:02:57]} 9. dxe4 {[%clk 0:03:04.9]} 9... Be7 {[%clk
0:02:56.9]} 10. c3 {[%clk 0:03:04.9]} 10... O-O {[%clk 0:02:56.9]} 11. Qc2
{[%clk 0:03:05]} 11... Qc7 {[%clk 0:02:56.1]} 12. Be3 {[%clk 0:03:04.7]} 12...
a5 {[%clk 0:02:52.8]} 13. a4 {[%clk 0:03:04.5]} 13... Bc5 {[%clk 0:02:51.7]} 14.
Bg5 {[%clk 0:02:59.4]} 14... h6 {[%clk 0:02:47.6]} 15. Bc1 {[%clk 0:02:58.9]}
15... Rad8 {[%clk 0:02:46.5]} 16. Nd2 {[%clk 0:02:57]} 16... Be2 {[%clk
0:02:36.1]} 17. Re1 {[%clk 0:02:56.5]} 17... Ba6 {[%clk 0:02:36.6]} 18. Bf1
{[%clk 0:02:56]} 18... Bxf1 {[%clk 0:02:27.3]} 19. Nxf1 {[%clk 0:02:56.9]} 19...
Nf6 {[%clk 0:02:24.2]} 20. Ne3 {[%clk 0:02:54]} 20... Rd7 {[%clk 0:02:21.3]} 21.
Kg2 {[%clk 0:02:53.2]} 21... Rfd8 {[%clk 0:02:20.9]} 22. Nf5 {[%clk 0:02:52.1]}
22... Ng4 {[%clk 0:02:13.2]} 23. f3 {[%clk 0:02:46.8]} 23... Nf6 {[%clk
0:02:13.3]} 24. b3 {[%clk 0:02:42.5]} 24... Kh7 {[%clk 0:01:54.4]} 25. h3 {[%clk
0:02:40.7]} 25... Nh5 {[%clk 0:01:20.8]} 26. Rb1 {[%clk 0:02:36.9]} 26... Qb6
{[%clk 0:00:53.6]} 27. g4 {[%clk 0:02:09.9]} 27... Nf4+ {[%clk 0:00:53.2]} 28.
Bxf4 {[%clk 0:02:09.9]} 28... exf4 {[%clk 0:00:54.1]} 29. Re2 {[%clk 0:02:10.2]}
29... g6 {[%clk 0:00:53.2]} 30. Nh4 {[%clk 0:02:05]} 30... Be7 {[%clk
0:00:50.5]} 31. Nxg6 {[%clk 0:01:48.7]} 31... fxg6 {[%clk 0:00:48.8]} 32. h4
{[%clk 0:01:48.7]} 32... Bc5 {[%clk 0:00:46.2]} 33. h5 {[%clk 0:01:47.8]} 33...
Be3 {[%clk 0:00:37.8]} 34. e5 {[%clk 0:01:47.4]} 34... c5 {[%clk 0:00:37.5]} 35.
b4 {[%clk 0:01:38.4]} 35... Rd2 {[%clk 0:00:21.5]} 36. Qb3 {[%clk 0:01:36.4]}
36... Rxe2+ {[%clk 0:00:20.4]} 37. Kh3 {[%clk 0:01:36.7]} 37... Qc7 {[%clk
0:00:13.8]} 38. Qe6 {[%clk 0:01:28]} 38... Qg7 {[%clk 0:00:08.5]} 39. hxg6+
{[%clk 0:01:24.5]} 39... Kh8 {[%clk 0:00:06.8]} 40. bxa5 {[%clk 0:01:18.6]}
40... Rf2 {[%clk 0:00:06.9]} 41. g5 {[%clk 0:00:48.1]} 41... Rxf3+ {[%clk
0:00:07.1]} 42. Kg2 {[%clk 0:00:46.7]} 42... Rg3+ {[%clk 0:00:07.1]} 43. Kh2
{[%clk 0:00:45.3]} 43... Rxg5 {[%clk 0:00:05.6]} 44. a6 {[%clk 0:00:38.5]} 44...
Rxg6 {[%clk 0:00:04.5]} 45. Qh3 {[%clk 0:00:37]} 45... Rd2+ {[%clk 0:00:04.4]}
46. Kh1 {[%clk 0:00:35.3]} 46... Rg1+ {[%clk 0:00:05]} 47. Rxg1 {[%clk
0:00:35.4]} 47... Qxg1# {[%clk 0:00:05.9]} 0-1

[Event "*** Titled Tuesday Blitz"]
[Site "Chess.com"]
[Date "2021.04.06"]
[Round "6"]
[White "Raud100"]
[Black "WPWPWP-2015"]
[Result "0-1"]
[WhiteElo "2271"]
[BlackElo "2442"]
[TimeControl "180+1"]
[EndTime "11:08:25 PDT"]
[Termination "WPWPWP-2015 won on time"]

1. d4 {[%clk 0:03:00.9]} 1... Nf6 {[%clk 0:02:59.2]} 2. c4 {[%clk 0:03:00.3]}
2... e6 {[%clk 0:02:59.2]} 3. Nf3 {[%clk 0:03:00.3]} 3... b6 {[%clk 0:02:57.1]}
4. g3 {[%clk 0:03:00.5]} 4... Ba6 {[%clk 0:02:56]} 5. Qa4 {[%clk 0:03:00.2]}
5... Bb7 {[%clk 0:02:55.4]} 6. Bg2 {[%clk 0:02:59.4]} 6... Be7 {[%clk
0:02:54.7]} 7. O-O {[%clk 0:02:58.8]} 7... O-O {[%clk 0:02:53.8]} 8. Nc3 {[%clk
0:02:55.5]} 8... a6 {[%clk 0:02:50.7]} 9. Rd1 {[%clk 0:02:54.4]} 9... b5 {[%clk
0:02:47.9]} 10. cxb5 {[%clk 0:02:52.6]} 10... axb5 {[%clk 0:02:47.6]} 11. Qxb5
{[%clk 0:02:52.2]} 11... Bc6 {[%clk 0:02:46.1]} 12. Qb3 {[%clk 0:02:49.2]} 12...
Na6 {[%clk 0:02:45.6]} 13. a3 {[%clk 0:02:47.4]} 13... Nb4 {[%clk 0:02:45.3]}
14. Bd2 {[%clk 0:02:34.5]} 14... Nbd5 {[%clk 0:02:39.4]} 15. Qc2 {[%clk
0:02:30]} 15... Nxc3 {[%clk 0:02:36.2]} 16. Bxc3 {[%clk 0:02:30.9]} 16... Qb8
{[%clk 0:02:23.7]} 17. Rdb1 {[%clk 0:02:29.3]} 17... Be4 {[%clk 0:02:21.7]} 18.
Qd1 {[%clk 0:02:19]} 18... Nd5 {[%clk 0:02:07.8]} 19. Rc1 {[%clk 0:02:13.5]}
19... Nxc3 {[%clk 0:02:07.4]} 20. Rxc3 {[%clk 0:02:11.7]} 20... Qxb2 {[%clk
0:02:03.3]} 21. Rxc7 {[%clk 0:02:09.7]} 21... Bxa3 {[%clk 0:01:18.4]} 22. Ne5
{[%clk 0:01:59.8]} 22... Bxg2 {[%clk 0:01:13.9]} 23. Kxg2 {[%clk 0:02:00.7]}
23... Qb6 {[%clk 0:00:51]} 24. Rc2 {[%clk 0:00:56.7]} 24... Bd6 {[%clk 0:00:49]}
25. Nf3 {[%clk 0:00:52]} 25... Rfb8 {[%clk 0:00:36.7]} 26. Rxa8 {[%clk
0:00:47.7]} 26... Rxa8 {[%clk 0:00:37.6]} 27. Qc1 {[%clk 0:00:48.2]} 27... Qd8
{[%clk 0:00:36.4]} 28. e4 {[%clk 0:00:46.5]} 28... h6 {[%clk 0:00:34.7]} 29. e5
{[%clk 0:00:45.5]} 29... Be7 {[%clk 0:00:34.3]} 30. Rc7 {[%clk 0:00:44.1]} 30...
d6 {[%clk 0:00:33.8]} 31. Qc6 {[%clk 0:00:40.1]} 31... Rb8 {[%clk 0:00:31]} 32.
Rd7 {[%clk 0:00:39]} 32... Qf8 {[%clk 0:00:30.9]} 33. exd6 {[%clk 0:00:30.5]}
33... Bf6 {[%clk 0:00:31.2]} 34. Ne5 {[%clk 0:00:30.2]} 34... Rc8 {[%clk
0:00:30.2]} 35. Qb7 {[%clk 0:00:27.8]} 35... Rb8 {[%clk 0:00:27.7]} 36. Qc7
{[%clk 0:00:20.9]} 36... Rb2 {[%clk 0:00:24.5]} 37. Rxf7 {[%clk 0:00:18.1]}
37... Qa8+ {[%clk 0:00:24.3]} 38. Nc6 {[%clk 0:00:11.2]} 38... Rc2 {[%clk
0:00:22.8]} 39. d5 {[%clk 0:00:02.2]} 39... Qa2 {[%clk 0:00:14.8]} 0-1

[Event "*** Titled Tuesday Blitz"]
[Site "Chess.com"]
[Date "2021.04.06"]
[Round "6"]
[White "suyu28"]
[Black "Izoria123"]
[Result "1-0"]
[WhiteElo "2620"]
[BlackElo "2795"]
[TimeControl "180+1"]
[EndTime "11:08:28 PDT"]
[Termination "suyu28 won on time"]

1. d4 {[%clk 0:03:00.9]} 1... Nf6 {[%clk 0:02:58.8]} 2. c4 {[%clk 0:02:58.8]}
2... e6 {[%clk 0:02:58.7]} 3. g3 {[%clk 0:02:59.1]} 3... c5 {[%clk 0:02:58.1]}
4. d5 {[%clk 0:02:58.4]} 4... exd5 {[%clk 0:02:59]} 5. cxd5 {[%clk 0:02:59.2]}
5... d6 {[%clk 0:02:59.6]} 6. Nc3 {[%clk 0:02:59.2]} 6... Be7 {[%clk 0:02:59.8]}
7. Bg2 {[%clk 0:02:59.8]} 7... O-O {[%clk 0:03:00.5]} 8. Nf3 {[%clk 0:03:00.5]}
8... Re8 {[%clk 0:02:59.9]} 9. O-O {[%clk 0:03:00.5]} 9... Bf8 {[%clk
0:03:00.8]} 10. Nd2 {[%clk 0:03:00.3]} 10... Na6 {[%clk 0:02:59.7]} 11. e4
{[%clk 0:02:59.3]} 11... Nc7 {[%clk 0:02:56.9]} 12. a4 {[%clk 0:02:58.3]} 12...
Rb8 {[%clk 0:02:52.6]} 13. Nc4 {[%clk 0:02:57.5]} 13... b6 {[%clk 0:02:47.5]}
14. Re1 {[%clk 0:02:56.8]} 14... a6 {[%clk 0:02:38.4]} 15. Bf4 {[%clk 0:02:55]}
15... b5 {[%clk 0:02:19]} 16. axb5 {[%clk 0:02:48.9]} 16... axb5 {[%clk
0:02:06.5]} 17. Na5 {[%clk 0:02:48.5]} 17... Bg4 {[%clk 0:01:55.8]} 18. Qd3
{[%clk 0:02:04.7]} 18... Bd7 {[%clk 0:01:37.1]} 19. Nc6 {[%clk 0:01:55.5]} 19...
Bxc6 {[%clk 0:01:36.8]} 20. dxc6 {[%clk 0:01:56.1]} 20... c4 {[%clk 0:01:37.7]}
21. Qd2 {[%clk 0:01:50.6]} 21... Ne6 {[%clk 0:01:36.9]} 22. Be3 {[%clk
0:01:02.3]} 22... Qc8 {[%clk 0:01:00.1]} 23. Ba7 {[%clk 0:00:48.3]} 23... Ra8
{[%clk 0:00:49.3]} 24. Nxb5 {[%clk 0:00:48.3]} 24... Qxc6 {[%clk 0:00:49.1]} 25.
e5 {[%clk 0:00:48]} 25... Qxb5 {[%clk 0:00:49.3]} 26. exf6 {[%clk 0:00:48.2]}
26... Rad8 {[%clk 0:00:36.5]} 27. Ra5 {[%clk 0:00:45.3]} 27... Qd7 {[%clk
0:00:30.5]} 28. fxg7 {[%clk 0:00:43.2]} 28... Bxg7 {[%clk 0:00:31.4]} 29. Rd1
{[%clk 0:00:39]} 29... Qc7 {[%clk 0:00:18.7]} 30. Ra6 {[%clk 0:00:34.4]} 30...
d5 {[%clk 0:00:16.1]} 31. Bb6 {[%clk 0:00:30.5]} 31... Qc6 {[%clk 0:00:15.1]}
32. Bxd5 {[%clk 0:00:25.9]} 32... Qb5 {[%clk 0:00:11]} 33. Bxd8 {[%clk
0:00:18.6]} 33... Qxa6 {[%clk 0:00:11.3]} 34. Ba5 {[%clk 0:00:14.7]} 34... Nd4
{[%clk 0:00:10.4]} 35. Bc3 {[%clk 0:00:07]} 35... Rd8 {[%clk 0:00:07.4]} 36. Qg5
{[%clk 0:00:04.9]} 36... Ne6 {[%clk 0:00:04.2]} 37. Qg4 {[%clk 0:00:02.9]} 37...
h5 {[%clk 0:00:01.8]} 38. Qf3 {[%clk 0:00:02.2]} 1-0

[Event "*** Titled Tuesday Blitz"]
[Site "Chess.com"]
[Date "2021.04.06"]
[Round "6"]
[White "JoliyRoger"]
[Black "lacafi"]
[Result "1-0"]
[WhiteElo "2402"]
[BlackElo "2212"]
[TimeControl "180+1"]
[EndTime "11:08:28 PDT"]
[Termination "JoliyRoger won on time"]

1. d4 {[%clk 0:02:54.4]} 1... f5 {[%clk 0:02:59.3]} 2. Nf3 {[%clk 0:02:52.8]}
2... Nf6 {[%clk 0:02:59.4]} 3. g3 {[%clk 0:02:53.3]} 3... g6 {[%clk 0:02:59.9]}
4. Bg2 {[%clk 0:02:54.2]} 4... Bg7 {[%clk 0:03:00.5]} 5. b3 {[%clk 0:02:53.7]}
5... O-O {[%clk 0:03:00.7]} 6. Bb2 {[%clk 0:02:54.6]} 6... d6 {[%clk 0:02:48.7]}
7. O-O {[%clk 0:02:55.5]} 7... c6 {[%clk 0:02:48.6]} 8. Nbd2 {[%clk 0:02:54]}
8... Qe8 {[%clk 0:02:48.9]} 9. Re1 {[%clk 0:02:53.4]} 9... Ne4 {[%clk
0:02:46.3]} 10. a4 {[%clk 0:02:34.4]} 10... Nd7 {[%clk 0:02:44.7]} 11. a5 {[%clk
0:02:28.2]} 11... Ndf6 {[%clk 0:02:40.1]} 12. h3 {[%clk 0:02:19.9]} 12... Rb8
{[%clk 0:02:27.1]} 13. Nc4 {[%clk 0:02:10.6]} 13... h6 {[%clk 0:02:11]} 14. e3
{[%clk 0:02:06.1]} 14... g5 {[%clk 0:02:07.2]} 15. Nh2 {[%clk 0:01:58.7]} 15...
Qg6 {[%clk 0:01:41.7]} 16. Qe2 {[%clk 0:01:29.9]} 16... h5 {[%clk 0:01:32]} 17.
Kh1 {[%clk 0:01:15.7]} 17... Kf7 {[%clk 0:00:59.4]} 18. Rg1 {[%clk 0:01:12.6]}
18... Rh8 {[%clk 0:00:52.2]} 19. Nd2 {[%clk 0:01:04.1]} 19... Be6 {[%clk
0:00:47.3]} 20. c4 {[%clk 0:01:02.4]} 20... Rbg8 {[%clk 0:00:45.2]} 21. d5
{[%clk 0:00:33.5]} 21... Bd7 {[%clk 0:00:43.6]} 22. a6 {[%clk 0:00:32.3]} 22...
b6 {[%clk 0:00:36.6]} 23. dxc6 {[%clk 0:00:29.5]} 23... Bxc6 {[%clk 0:00:36.1]}
24. Ndf3 {[%clk 0:00:29.6]} 24... h4 {[%clk 0:00:25.6]} 25. gxh4 {[%clk
0:00:21.2]} 25... gxh4 {[%clk 0:00:25]} 26. Nd4 {[%clk 0:00:16.2]} 26... Qh5
{[%clk 0:00:11.2]} 27. Qxh5+ {[%clk 0:00:13.3]} 27... Rxh5 {[%clk 0:00:07.6]}
28. Bxe4 {[%clk 0:00:10.4]} 28... Bxe4+ {[%clk 0:00:07.9]} 29. f3 {[%clk
0:00:11]} 29... Ba8 {[%clk 0:00:06.3]} 30. Raf1 {[%clk 0:00:06.2]} 30... Bh6
{[%clk 0:00:06.3]} 31. Bc1 {[%clk 0:00:04.4]} 31... Rxg1+ {[%clk 0:00:05.7]} 32.
Kxg1 {[%clk 0:00:05]} 32... e5 {[%clk 0:00:05.5]} 33. Nb5 {[%clk 0:00:04]} 33...
Bc6 {[%clk 0:00:01.3]} 34. Nxd6+ {[%clk 0:00:03.3]} 34... Ke6 {[%clk 0:00:01.2]}
35. Nb5 {[%clk 0:00:03.3]} 35... e4 {[%clk 0:00:01.6]} 36. f4 {[%clk 0:00:03.5]}
36... Bf8 {[%clk 0:00:01.7]} 37. Nd4+ {[%clk 0:00:04.1]} 37... Kd7 {[%clk
0:00:01.6]} 38. Rd1 {[%clk 0:00:04.2]} 38... Kc7 {[%clk 0:00:01.7]} 39. Ne6+
{[%clk 0:00:04.2]} 1-0

[Event "*** Titled Tuesday Blitz"]
[Site "Chess.com"]
[Date "2021.04.06"]
[Round "6"]
[White "blitzking1729"]
[Black "ChessWarrior7197"]
[Result "0-1"]
[WhiteElo "2624"]
[BlackElo "2911"]
[TimeControl "180+1"]
[EndTime "11:08:30 PDT"]
[Termination "ChessWarrior7197 won by checkmate"]

1. d4 {[%clk 0:03:00.9]} 1... Nf6 {[%clk 0:02:59.4]} 2. c4 {[%clk 0:03:01]} 2...
e6 {[%clk 0:02:58.7]} 3. Nf3 {[%clk 0:03:01]} 3... b6 {[%clk 0:02:58.6]} 4. g3
{[%clk 0:03:01.2]} 4... Bb7 {[%clk 0:02:59.5]} 5. Bg2 {[%clk 0:03:01.3]} 5...
Be7 {[%clk 0:02:59.5]} 6. O-O {[%clk 0:03:01.6]} 6... O-O {[%clk 0:03:00.1]} 7.
Ne1 {[%clk 0:03:01.6]} 7... Bxg2 {[%clk 0:02:59.6]} 8. Nxg2 {[%clk 0:03:02.5]}
8... d5 {[%clk 0:03:00.3]} 9. cxd5 {[%clk 0:03:00.1]} 9... Qxd5 {[%clk
0:03:01.2]} 10. Nc3 {[%clk 0:03:00.2]} 10... Qb7 {[%clk 0:03:02.1]} 11. Bg5
{[%clk 0:02:57.7]} 11... Rd8 {[%clk 0:03:01.9]} 12. Bxf6 {[%clk 0:02:57.7]}
12... Bxf6 {[%clk 0:03:02.1]} 13. e3 {[%clk 0:02:55]} 13... c5 {[%clk
0:03:02.5]} 14. Qe2 {[%clk 0:02:49.4]} 14... cxd4 {[%clk 0:03:02.5]} 15. exd4
{[%clk 0:02:50.3]} 15... Nc6 {[%clk 0:03:03]} 16. Ne4 {[%clk 0:02:40.1]} 16...
Bxd4 {[%clk 0:02:58.9]} 17. Rfd1 {[%clk 0:02:38.1]} 17... Rd7 {[%clk 0:02:54.8]}
18. Nf4 {[%clk 0:02:35.8]} 18... Rad8 {[%clk 0:02:54.2]} 19. Nh5 {[%clk
0:02:35.1]} 19... Ne5 {[%clk 0:02:38.6]} 20. h3 {[%clk 0:01:29.9]} 20... Kf8
{[%clk 0:02:24.9]} 21. Nf4 {[%clk 0:01:19.1]} 21... h6 {[%clk 0:02:17.9]} 22.
Re1 {[%clk 0:01:08.5]} 22... g5 {[%clk 0:02:09.1]} 23. Ng2 {[%clk 0:00:50.3]}
23... f5 {[%clk 0:02:07.5]} 24. Nf6 {[%clk 0:00:50]} 24... Nf3+ {[%clk
0:02:04.8]} 25. Kh1 {[%clk 0:00:49.3]} 25... Bxf6 {[%clk 0:02:03.3]} 26. Qxe6
{[%clk 0:00:48.7]} 26... Rd6 {[%clk 0:02:02.9]} 27. Qxf5 {[%clk 0:00:45.7]}
27... Nxe1 {[%clk 0:02:03.5]} 28. Rxe1 {[%clk 0:00:46.1]} 28... Kg7 {[%clk
0:02:03.2]} 29. Kh2 {[%clk 0:00:44.1]} 29... Qd5 {[%clk 0:01:58.7]} 30. Qg4
{[%clk 0:00:25.5]} 30... Qd4 {[%clk 0:01:49.2]} 31. Qf3 {[%clk 0:00:23.3]} 31...
Qd5 {[%clk 0:01:34]} 32. Qg4 {[%clk 0:00:22]} 32... Bd4 {[%clk 0:01:27.7]} 33.
Nh4 {[%clk 0:00:19.8]} 33... Rf6 {[%clk 0:01:22.4]} 34. f4 {[%clk 0:00:18.4]}
34... Bc5 {[%clk 0:01:18.2]} 35. Nf3 {[%clk 0:00:17.8]} 35... Qf5 {[%clk
0:01:16.1]} 36. fxg5 {[%clk 0:00:15.9]} 36... hxg5 {[%clk 0:01:16.6]} 37. Qxg5+
{[%clk 0:00:10.2]} 37... Qxg5 {[%clk 0:01:15.5]} 38. Nxg5 {[%clk 0:00:11.1]}
38... Rd2+ {[%clk 0:01:16.4]} 39. Kh1 {[%clk 0:00:09.8]} 39... Rff2 {[%clk
0:01:16.4]} 40. Ne6+ {[%clk 0:00:07.5]} 40... Kf6 {[%clk 0:01:16.9]} 41. Nxc5
{[%clk 0:00:08.4]} 41... bxc5 {[%clk 0:01:16.8]} 42. Rc1 {[%clk 0:00:08]} 42...
Rxb2 {[%clk 0:01:17]} 43. Kg1 {[%clk 0:00:07.3]} 43... Rfc2 {[%clk 0:01:16.1]}
44. Rf1+ {[%clk 0:00:07.2]} 44... Kg5 {[%clk 0:01:16.4]} 45. g4 {[%clk
0:00:07.7]} 45... Kh4 {[%clk 0:01:16.1]} 46. Rd1 {[%clk 0:00:04.2]} 46... Kxh3
{[%clk 0:01:14.7]} 47. g5 {[%clk 0:00:03.9]} 47... Rg2+ {[%clk 0:01:15]} 48. Kf1
{[%clk 0:00:04.4]} 48... Kh2 {[%clk 0:01:15.5]} 49. Rd2 {[%clk 0:00:02.8]} 49...
Rbxd2 {[%clk 0:01:15.2]} 50. Ke1 {[%clk 0:00:03.7]} 50... Rxa2 {[%clk
0:01:15.6]} 51. g6 {[%clk 0:00:03.5]} 51... Rxg6 {[%clk 0:01:16.5]} 52. Kd1
{[%clk 0:00:03]} 52... c4 {[%clk 0:01:16.8]} 53. Kc1 {[%clk 0:00:03.4]} 53... c3
{[%clk 0:01:16.7]} 54. Kd1 {[%clk 0:00:04.3]} 54... Rb2 {[%clk 0:01:16.5]} 55.
Kc1 {[%clk 0:00:05.2]} 55... a5 {[%clk 0:01:17]} 56. Kd1 {[%clk 0:00:05.9]}
56... a4 {[%clk 0:01:17.5]} 57. Kc1 {[%clk 0:00:06.8]} 57... a3 {[%clk
0:01:17.9]} 58. Kd1 {[%clk 0:00:07.7]} 58... Rbg2 {[%clk 0:01:18.3]} 59. Kc1
{[%clk 0:00:08.6]} 59... a2 {[%clk 0:01:18.6]} 60. Kd1 {[%clk 0:00:09.1]} 60...
Rg1+ {[%clk 0:01:19.2]} 61. Kc2 {[%clk 0:00:08.8]} 61... a1=Q {[%clk 0:01:20.1]}
62. Kb3 {[%clk 0:00:08.6]} 62... Qb2+ {[%clk 0:01:20.3]} 63. Kc4 {[%clk
0:00:08.6]} 63... c2 {[%clk 0:01:20.8]} 64. Kd3 {[%clk 0:00:08.5]} 64... c1=Q
{[%clk 0:01:20.9]} 65. Ke4 {[%clk 0:00:07.3]} 65... Qc4+ {[%clk 0:01:19.9]} 66.
Kf3 {[%clk 0:00:06.7]} 66... R6g3# {[%clk 0:01:20]} 0-1

[Event "*** Titled Tuesday Blitz"]
[Site "Chess.com"]
[Date "2021.04.06"]
[Round "6"]
[White "Byniolus"]
[Black "INDIAN-ELEPHANT"]
[Result "0-1"]
[WhiteElo "2872"]
[BlackElo "2718"]
[TimeControl "180+1"]
[EndTime "11:08:31 PDT"]
[Termination "INDIAN-ELEPHANT won by resignation"]

1. d4 {[%clk 0:03:00.9]} 1... Nf6 {[%clk 0:02:59.9]} 2. Nf3 {[%clk 0:03:00.5]}
2... e6 {[%clk 0:03:00]} 3. Bf4 {[%clk 0:03:00.6]} 3... b6 {[%clk 0:02:58.2]} 4.
e3 {[%clk 0:03:00.6]} 4... Bb7 {[%clk 0:02:58.7]} 5. h3 {[%clk 0:03:00.4]} 5...
g6 {[%clk 0:02:58.5]} 6. Be2 {[%clk 0:02:59.1]} 6... Bg7 {[%clk 0:02:58.7]} 7.
O-O {[%clk 0:02:59.7]} 7... O-O {[%clk 0:02:58.6]} 8. c3 {[%clk 0:03:00]} 8...
d6 {[%clk 0:02:58.7]} 9. Bh2 {[%clk 0:03:00.1]} 9... Nbd7 {[%clk 0:02:58.8]} 10.
a4 {[%clk 0:03:00.2]} 10... a5 {[%clk 0:02:58.6]} 11. Nbd2 {[%clk 0:03:00.3]}
11... Ne4 {[%clk 0:02:58.6]} 12. Nxe4 {[%clk 0:02:56]} 12... Bxe4 {[%clk
0:02:58]} 13. Nd2 {[%clk 0:02:56.9]} 13... Bb7 {[%clk 0:02:57.6]} 14. Bf3 {[%clk
0:02:57.8]} 14... Bxf3 {[%clk 0:02:55.9]} 15. Qxf3 {[%clk 0:02:57.7]} 15... d5
{[%clk 0:02:56.4]} 16. c4 {[%clk 0:02:37.7]} 16... c6 {[%clk 0:02:54]} 17. Rac1
{[%clk 0:02:27.9]} 17... Qe7 {[%clk 0:02:43.8]} 18. Qe2 {[%clk 0:01:52.4]} 18...
Rfc8 {[%clk 0:02:40.7]} 19. cxd5 {[%clk 0:01:48.3]} 19... exd5 {[%clk
0:02:39.5]} 20. Qd3 {[%clk 0:01:38.4]} 20... Qb4 {[%clk 0:02:38]} 21. b3 {[%clk
0:01:34]} 21... Bf8 {[%clk 0:02:35.7]} 22. Rc2 {[%clk 0:01:31.9]} 22... Bd6
{[%clk 0:02:33.6]} 23. Bxd6 {[%clk 0:01:31.2]} 23... Qxd6 {[%clk 0:02:33.2]} 24.
Rfc1 {[%clk 0:01:32.1]} 24... Rc7 {[%clk 0:02:33.2]} 25. e4 {[%clk 0:01:29]}
25... dxe4 {[%clk 0:02:25.4]} 26. Nxe4 {[%clk 0:01:29.9]} 26... Qd5 {[%clk
0:02:25.4]} 27. Qf3 {[%clk 0:01:13.4]} 27... Re8 {[%clk 0:02:20.3]} 28. Re2
{[%clk 0:00:55.7]} 28... Re6 {[%clk 0:02:19.7]} 29. Rce1 {[%clk 0:00:48.8]}
29... Qxd4 {[%clk 0:02:14.2]} 30. Ng5 {[%clk 0:00:29.9]} 30... Rf6 {[%clk
0:02:14.2]} 31. Re8+ {[%clk 0:00:24.3]} 31... Kg7 {[%clk 0:02:14.1]} 32. Qg3
{[%clk 0:00:25.2]} 32... Ra7 {[%clk 0:01:56.7]} 33. R1e7 {[%clk 0:00:21.9]}
33... b5 {[%clk 0:01:27.8]} 34. Ne4 {[%clk 0:00:13.5]} 34... Rf5 {[%clk
0:01:21.8]} 35. Nd6 {[%clk 0:00:12.8]} 35... Rf4 {[%clk 0:01:14.9]} 36. axb5
{[%clk 0:00:11.6]} 36... Qxd6 {[%clk 0:01:06.9]} 37. bxc6 {[%clk 0:00:11.9]}
37... Nf6 {[%clk 0:00:58.4]} 38. Rxa7 {[%clk 0:00:10.1]} 38... Nxe8 {[%clk
0:00:58.7]} 39. Qc3+ {[%clk 0:00:08]} 39... Qd4 {[%clk 0:00:52.4]} 40. Qxd4+
{[%clk 0:00:02.7]} 40... Rxd4 {[%clk 0:00:53.3]} 41. Re7 {[%clk 0:00:01.7]}
41... Kf8 {[%clk 0:00:50.8]} 42. Rd7 {[%clk 0:00:02.2]} 42... Rd6 {[%clk
0:00:41.3]} 43. c7 {[%clk 0:00:01.2]} 43... Rc6 {[%clk 0:00:41.5]} 44. Rd5
{[%clk 0:00:01.2]} 44... Nxc7 {[%clk 0:00:38.3]} 45. Rxa5 {[%clk 0:00:02.1]}
45... Ke7 {[%clk 0:00:38.7]} 46. Kh2 {[%clk 0:00:02.8]} 46... Rb6 {[%clk
0:00:37.8]} 47. Ra3 {[%clk 0:00:03.7]} 47... Nb5 {[%clk 0:00:37]} 48. Ra2 {[%clk
0:00:04.1]} 48... Nd4 {[%clk 0:00:37.2]} 49. Rd2 {[%clk 0:00:04.1]} 49... Nxb3
{[%clk 0:00:37]} 50. Re2+ {[%clk 0:00:03.9]} 50... Re6 {[%clk 0:00:36.4]} 51. f4
{[%clk 0:00:04.8]} 0-1